fUSD/lending_fUSD_20240301
["ID","MTS","AMOUNT","RATE_DAILY","PERIOD"]
[315973056,1709309440774,-500.0,0.00021917,2]
[315973058,1709309440783,-500.0,0.00021917,2]
[315973060,1709309440792,-537.29,0.00021917,2]
[315973062,1709309440801,-500.0,0.00021917,2]
[315973064,1709309440810,-500.0,0.00021917,2]
[315973066,1709309440820,-500.0,0.00021917,2]
[315973067,1709309440829,-500.0,0.00021917,2]
[315973068,1709309440837,-500.0,0.00021917,2]
[315973069,1709309440846,-500.0,0.00021917,2]
[315973070,1709309440855,-500.0,0.00021917,2]
[315973071,1709309440864,-598.53737784,0.00021917,2]
[315973072,1709309440873,-500.0,0.00021917,2]
[315973073,1709309440882,-684.61,0.00021917,2]
[315973074,1709309440891,-500.0,0.00021917,2]
[315973075,1709309440900,-500.0,0.00021917,2]
[315973076,1709309440909,-500.0,0.00021917,2]
[315973077,1709309440918,-500.0,0.00021917,2]
[315973079,1709309440927,-500.0,0.00021917,2]
[315973081,1709309440936,-760.67,0.00021917,2]
[315973083,1709309440945,-500.0,0.00021917,2]
[315973085,1709309440955,-500.0,0.00021917,2]
[315973087,1709309440964,-500.0,0.00021917,2]
[315973089,1709309440973,-500.0,0.00021917,2]
[315973091,1709309440981,-500.0,0.00021917,2]
[315973093,1709309440992,-500.0,0.00021917,2]
[315973095,1709309441003,-196.99214627,0.00021917,2]
[315973097,1709309441012,-500.0,0.00021917,2]
[315973099,1709309441025,-500.0,0.00021917,2]
[315973101,1709309441034,-500.0,0.00021917,2]
[315973104,1709309441044,-597.27,0.00021917,2]
[315973106,1709309441054,-500.0,0.00021917,2]
[315973108,1709309441064,-500.0,0.00021917,2]
[315973110,1709309441075,-500.0,0.00021917,2]
[315973112,1709309441086,-500.0,0.00021917,2]
[315973114,1709309441095,-500.0,0.00021917,2]
[315973116,1709309441105,-500.0,0.00021917,2]
[315973118,1709309441114,-500.0,0.00021917,2]
[315973120,1709309441124,-500.0,0.00021917,2]
[315973122,1709309441133,-500.0,0.00021917,2]
[315973124,1709309441143,-500.0,0.00021917,2]
[315973126,1709309441153,-582.93854387,0.00021917,2]
[315973128,1709309441163,-500.0,0.00021917,2]
[315973130,1709309441173,-500.0,0.00021917,2]
[315973132,1709309441183,-500.0,0.00021917,2]
[315973134,1709309441192,-500.0,0.00021917,2]
[315973136,1709309441202,-500.0,0.00021917,2]
[315973138,1709309441212,-500.0,0.00021917,2]
[315973140,1709309441222,-500.0,0.00021917,2]
[315973142,1709309441232,-500.0,0.00021917,2]
[315973144,1709309441244,-591.88,0.00021917,2]
[315973146,1709309441254,-500.0,0.00021917,2]
[315973148,1709309441264,-500.0,0.00021917,2]
[315973150,1709309441273,-500.0,0.00021917,2]
[315973152,1709309441283,-500.0,0.00021917,2]
[315973154,1709309441292,-500.0,0.00021917,2]
[315973157,1709309441306,-500.0,0.00021917,2]
[315973159,1709309441316,-718.04,0.00021917,2]
[315973161,1709309441325,-509.77,0.00021917,2]
[315973163,1709309441335,-500.0,0.00021917,2]
[315973165,1709309441345,-564.22,0.00021917,2]
[315973167,1709309441355,-500.0,0.00021917,2]
[315973169,1709309441365,-500.0,0.00021917,2]
[315973171,1709309441375,-500.0,0.00021917,2]
[315973173,1709309441387,-765.02,0.00021917,2]
[315973175,1709309441397,-500.0,0.00021917,2]
[315973177,1709309441407,-500.0,0.00021917,2]
[315973179,1709309441417,-500.0,0.00021917,2]
[315973181,1709309441427,-402.9122386,0.00021917,2]
[315973183,1709309441436,-500.0,0.00021917,2]
[315973185,1709309441446,-500.0,0.00021917,2]
[315973187,1709309441456,-336.32,0.00021917,2]
[315973189,1709309441466,-500.0,0.00021917,2]
[315973191,1709309441477,-500.0,0.00021917,2]
[315973193,1709309441487,-500.0,0.00021917,2]
[315973195,1709309441498,-708.85,0.00021917,2]
[315973197,1709309441507,-500.0,0.00021917,2]
[315973199,1709309441517,-349.66340921,0.00021917,2]
[315973201,1709309441527,-500.0,0.00021917,2]
[315973204,1709309441537,-500.0,0.00021917,2]
[315973205,1709309441547,-500.0,0.00021917,2]
[315973208,1709309441556,-500.0,0.00021917,2]
[315973210,1709309441569,-528.17699178,0.00021917,2]
[315973212,1709309441579,-509.98192901,0.00021917,2]
[315973214,1709309441588,-500.0,0.00021917,2]
[315973216,1709309441598,-490.85012883,0.00021917,2]
[315973218,1709309441607,-500.0,0.00021917,2]
[315973220,1709309441616,-500.0,0.00021917,2]
[315973222,1709309441626,-500.0,0.00021917,2]
[315973224,1709309441637,-500.0,0.00021917,2]
[315973226,1709309441646,-500.0,0.00021917,2]
[315973228,1709309441656,-500.0,0.00021917,2]
[315973231,1709309441667,-500.0,0.00021917,2]
[315973232,1709309441677,-500.0,0.00021917,2]
[315973235,1709309441687,-500.0,0.00021917,2]
[315973237,1709309441696,-500.0,0.00021917,2]
[315973239,1709309441706,-500.0,0.00021917,2]
[315973241,1709309441715,-500.0,0.00021917,2]
[315973243,1709309441725,-500.0,0.00021917,2]
[315973245,1709309441734,-500.0,0.00021917,2]
[315973247,1709309441745,-500.0,0.00021917,2]
[315973249,1709309441755,-500.0,0.00021917,2]
[315973251,1709309441764,-500.0,0.00021917,2]
[315973253,1709309441773,-500.0,0.00021917,2]
[315973255,1709309441782,-593.71,0.00021917,2]
[315973257,1709309441792,-500.0,0.00021917,2]
[315973259,1709309441801,-500.0,0.00021917,2]
[315973261,1709309441810,-500.0,0.00021917,2]
[315973263,1709309441819,-500.0,0.00021917,2]
[315973265,1709309441829,-500.0,0.00021917,2]
[315973267,1709309441838,-500.0,0.00021917,2]
[315973269,1709309441847,-500.0,0.00021917,2]
[315973271,1709309441856,-500.0,0.00021917,2]
[315973273,1709309441865,-507.04,0.00021917,2]
[315973275,1709309441875,-500.0,0.00021917,2]
[315973277,1709309441884,-500.0,0.00021917,2]
[315973279,1709309441893,-500.0,0.00021917,2]
[315973281,1709309441903,-500.0,0.00021917,2]
[315973284,1709309441913,-500.0,0.00021917,2]
[315973286,1709309441922,-500.0,0.00021917,2]
[315973288,1709309441933,-500.0,0.00021917,2]
[315973290,1709309441943,-500.0,0.00021917,2]
[315973292,1709309441952,-587.48,0.00021917,2]
[315973294,1709309441962,-2835.84,0.00021917,2]
[315973296,1709309441971,-500.0,0.00021917,2]
[315973298,1709309441980,-703.58,0.00021917,2]
[315973300,1709309441991,-500.0,0.00021917,2]
[315973302,1709309442000,-500.0,0.00021917,2]
[315973304,1709309442010,-500.0,0.00021917,2]
[315973306,1709309442019,-665.21,0.00021917,2]
[315973308,1709309442028,-500.0,0.00021917,2]
[315973310,1709309442037,-2975.15,0.00021917,2]
[315973312,1709309442046,-500.0,0.00021917,2]
[315973314,1709309442056,-500.0,0.00021917,2]
[315973316,1709309442065,-500.0,0.00021917,2]
[315973318,1709309442075,-500.0,0.00021917,2]
[315973320,1709309442085,-500.0,0.00021917,2]
[315973322,1709309442095,-3350.72,0.00021917,2]
[315973325,1709309442105,-500.0,0.00021917,2]
[315973327,1709309442114,-500.0,0.00021917,2]
[315973329,1709309442124,-500.0,0.00021917,2]
[315973331,1709309442134,-1229.25,0.00021917,2]
[315973333,1709309442144,-1805.98,0.00021917,2]
[315973335,1709309442155,-500.0,0.00021917,2]
[315973337,1709309442165,-500.0,0.00021917,2]
[315973339,1709309442174,-516.5,0.00021917,2]
[315973341,1709309442184,-500.0,0.00021917,2]
[315973343,1709309442193,-1429.49,0.00021917,2]
[315973345,1709309442203,-2846.21,0.00021917,2]
[315973347,1709309442214,-500.0,0.00021917,2]
[315973349,1709309442223,-1100.53,0.00021917,2]
[315973351,1709309442233,-500.0,0.00021917,2]
[315973353,1709309442245,-4475.21,0.00021917,2]
[315973355,1709309442256,-500.0,0.00021917,2]
[315973357,1709309442266,-549.16,0.00021917,2]
[315973359,1709309442276,-1148.04,0.00021917,2]
[315973361,1709309442287,-500.0,0.00021917,2]
[315973363,1709309442297,-500.0,0.00021917,2]
[315973373,1709309442306,-2690.22,0.00021917,2]
[315973375,1709309442399,-500.0,0.00021917,2]
[315973377,1709309442408,-500.0,0.00021917,2]
[315973379,1709309442418,-500.0,0.00021917,2]
[315973381,1709309442428,-741.41,0.00021917,2]
[315973383,1709309442437,-1254.57,0.00021917,2]
[315973385,1709309442446,-500.0,0.00021917,2]
[315973387,1709309442456,-282.80903711,0.00021917,2]
[315973389,1709309442465,-500.0,0.00021917,2]
[315973391,1709309442474,-500.0,0.00021917,2]
[315973393,1709309442483,-970.88,0.00021917,2]
[315973395,1709309442493,-673.98,0.00021917,2]
[315973397,1709309442502,-997.6,0.00021917,2]
[315973399,1709309442512,-500.0,0.00021917,2]
[315973401,1709309442521,-500.0,0.00021917,2]
[315973403,1709309442530,-1112.14,0.00021917,2]
[315973405,1709309442539,-559.69,0.00021917,2]
[315973407,1709309442548,-500.0,0.00021917,2]
[315973409,1709309442558,-500.0,0.00021917,2]
[315973411,1709309442567,-1944.73,0.00021917,2]
[315973413,1709309442577,-559.19008466,0.00021917,2]
[315973415,1709309442586,-500.0,0.00021917,2]
[315973417,1709309442596,-500.0,0.00021917,2]
[315973419,1709309442605,-318.59,0.00021917,2]
[315973421,1709309442614,-500.0,0.00021917,2]
[315973423,1709309442623,-565.17,0.00021917,2]
[315973425,1709309442632,-10537.76,0.00021917,2]
[315973427,1709309442641,-500.0,0.00021917,2]
[315973429,1709309442650,-860.79,0.00021917,2]
[315973431,1709309442659,-509.18,0.00021917,2]
[315973433,1709309442668,-995.66,0.00021917,2]
[315973435,1709309442678,-500.0,0.00021917,2]
[315973437,1709309442688,-635.07,0.00021917,2]
[315973440,1709309442698,-586.27,0.00021917,2]
[315973441,1709309442707,-528.89994782,0.00021917,2]
[315973445,1709309442718,-500.0,0.00021917,2]
[315973449,1709309442727,-500.0,0.00021917,2]
[315973452,1709309442736,-500.0,0.00021917,2]
[315973454,1709309442747,-500.0,0.00021917,2]
[315973456,1709309442757,-1273.15,0.00021917,2]
[315973458,1709309442766,-500.0,0.00021917,2]
[315973461,1709309442775,-593.1,0.00021917,2]
[315973463,1709309442784,-500.0,0.00021917,2]
[315973465,1709309442793,-561.65,0.00021917,2]
[315973467,1709309442803,-500.0,0.00021917,2]
[315973469,1709309442812,-550.9,0.00021917,2]
[315973471,1709309442822,-500.0,0.00021917,2]
[315973474,1709309442831,-1131.74,0.00021917,2]
[315973478,1709309442841,-500.0,0.00021917,2]
[315973481,1709309442850,-500.0,0.00021917,2]
[315973484,1709309442859,-500.0,0.00021917,2]
[315973486,1709309442868,-500.0,0.00021917,2]
[315973489,1709309442889,-697.42,0.00021917,2]
[315973491,1709309442900,-500.0,0.00021917,2]
[315973493,1709309442910,-861.57,0.00021917,2]
[315973495,1709309442919,-500.0,0.00021917,2]
[315973497,1709309442928,-266.76953693,0.00021917,2]
[315973499,1709309442938,-620.83,0.00021917,2]
[315973501,1709309442947,-673.2,0.00021917,2]
[315973502,1709309442956,-500.0,0.00021917,2]
[315973503,1709309442965,-500.0,0.00021917,2]
[315973504,1709309442974,-632.04,0.00021917,2]
[315973505,1709309442984,-964.87,0.00021917,2]
[315973506,1709309442994,-500.0,0.00021917,2]
[315973507,1709309443003,-500.0,0.00021917,2]
[315973508,1709309443013,-755.65,0.00021917,2]
[315973509,1709309443022,-588.73,0.00021917,2]
[315973511,1709309443032,-500.0,0.00021917,2]
[315973513,1709309443041,-500.0,0.00021917,2]
[315973515,1709309443050,-500.0,0.00021917,2]
[315973517,1709309443059,-500.0,0.00021917,2]
[315973519,1709309443068,-500.0,0.00021917,2]
[315973521,1709309443077,-500.0,0.00021917,2]
[315973523,1709309443086,-500.0,0.00021917,2]
[315973525,1709309443096,-500.0,0.00021917,2]
[315973527,1709309443105,-659.56,0.00021917,2]
[315973529,1709309443116,-500.0,0.00021917,2]
[315973531,1709309443126,-500.0,0.00021917,2]
[315973533,1709309443137,-837.32,0.00021917,2]
[315973535,1709309443147,-500.0,0.00021917,2]
[315973537,1709309443156,-500.0,0.00021917,2]
[315973539,1709309443165,-500.0,0.00021917,2]
[315973541,1709309443175,-564.5,0.00021917,2]
[315973543,1709309443184,-2840.71,0.00021917,2]
[315973544,1709309443193,-500.0,0.00021917,2]
[315973546,1709309443202,-500.0,0.00021917,2]
[315973548,1709309443211,-500.0,0.00021917,2]
[315973550,1709309443220,-540.27,0.00021917,2]
[315973552,1709309443230,-500.0,0.00021917,2]
[315973554,1709309443241,-1238.11,0.00021917,2]
[315973557,1709309443250,-2405.48,0.00021917,2]
[315973558,1709309443259,-2405.48,0.00021917,2]
[315973560,1709309443268,-500.0,0.00021917,2]
[315973562,1709309443277,-500.0,0.00021917,2]
[315973564,1709309443286,-500.0,0.00021917,2]
[315973566,1709309443297,-500.0,0.00021917,2]
[315973568,1709309443306,-500.0,0.00021917,2]
[315973571,1709309443316,-2949.34,0.00021917,2]
[315973572,1709309443326,-500.0,0.00021917,2]
[315973575,1709309443336,-500.0,0.00021917,2]
[315973578,1709309443346,-729.01,0.00021917,2]
[315973581,1709309443357,-500.0,0.00021917,2]
[315973582,1709309443366,-500.0,0.00021917,2]
[315973586,1709309443376,-1640.68,0.00021917,2]
[315973588,1709309443388,-500.0,0.00021917,2]
[315973591,1709309443399,-471.55850604,0.00021917,2]
[315973593,1709309443410,-500.0,0.00021917,2]
[315973594,1709309443420,-500.0,0.00021917,2]
[315973597,1709309443430,-500.0,0.00021917,2]
[315973599,1709309443439,-547.02,0.00021917,2]
[315973600,1709309443449,-1100.08,0.00021917,2]
[315973602,1709309443458,-528.18,0.00021917,2]
[315973605,1709309443468,-732.43,0.00021917,2]
[315973607,1709309443479,-500.0,0.00021917,2]
[315973609,1709309443490,-500.0,0.00021917,2]
[315973611,1709309443501,-500.0,0.00021917,2]
[315973613,1709309443510,-797.12,0.00021917,2]
[315973615,1709309443520,-687.06,0.00021917,2]
[315973617,1709309443529,-500.0,0.00021917,2]
[315973619,1709309443538,-500.0,0.00021917,2]
[315973621,1709309443548,-787.68,0.00021917,2]
[315973623,1709309443558,-500.0,0.00021917,2]
[315973625,1709309443567,-500.0,0.00021917,2]
[315973627,1709309443577,-500.0,0.00021917,2]
[315973629,1709309443586,-575.09,0.00021917,2]
[315973631,1709309443595,-500.0,0.00021917,2]
[315973633,1709309443605,-1070.28,0.00021917,2]
[315973634,1709309443615,-500.0,0.00021917,2]
[315973636,1709309443624,-500.0,0.00021917,2]
[315973638,1709309443633,-500.0,0.00021917,2]
[315973641,1709309443643,-798.37,0.00021917,2]
[315973643,1709309443652,-474.83495492,0.00021917,2]
[315973645,1709309443662,-500.0,0.00021917,2]
[315973647,1709309443671,-500.0,0.00021917,2]
[315973649,1709309443680,-2919.27,0.00021917,2]
[315973651,1709309443690,-500.0,0.00021917,2]
[315973653,1709309443700,-500.0,0.00021917,2]
[315973655,1709309443709,-500.0,0.00021917,2]
[315973657,1709309443718,-500.0,0.00021917,2]
[315973659,1709309443727,-500.0,0.00021917,2]
[315973661,1709309443737,-500.0,0.00021917,2]
[315973663,1709309443748,-500.0,0.00021917,2]
[315973665,1709309443757,-500.0,0.00021917,2]
[315973667,1709309443767,-500.0,0.00021917,2]
[315973669,1709309443776,-500.0,0.00021917,2]
[315973671,1709309443786,-965.62,0.00021917,2]
[315973673,1709309443795,-500.0,0.00021917,2]
[315973675,1709309443805,-500.0,0.00021917,2]
[315973677,1709309443814,-674.16,0.00021917,2]
[315973678,1709309443824,-529.88,0.00021917,2]
[315973680,1709309443833,-2404.05,0.00021917,2]
[315973682,1709309443843,-804.1,0.00021917,2]
[315973685,1709309443853,-500.0,0.00021917,2]
[315973687,1709309443862,-3496.56,0.00021917,2]
[315973689,1709309443871,-500.0,0.00021917,2]
[315973691,1709309443880,-2538.8,0.00021917,2]
[315973693,1709309443890,-500.0,0.00021917,2]
[315973695,1709309443899,-500.0,0.00021917,2]
[315973697,1709309443908,-634.09,0.00021917,2]
[315973699,1709309443917,-653.65,0.00021917,2]
[315973701,1709309443926,-500.0,0.00021917,2]
[315973703,1709309443938,-500.0,0.00021917,2]
[315973705,1709309443947,-1850.94,0.00021917,2]
[315973707,1709309443956,-500.0,0.00021917,2]
[315973709,1709309443965,-1069.23,0.00021917,2]
[315973711,1709309443974,-500.0,0.00021917,2]
[315973713,1709309443983,-3780.9,0.00021917,2]
[315973715,1709309443994,-947.98,0.00021917,2]
[315973717,1709309444004,-3301.32,0.00021917,2]
[315973719,1709309444013,-2663.54,0.00021917,2]
[315973721,1709309444022,-500.0,0.00021917,2]
[315973723,1709309444031,-500.0,0.00021917,2]
[315973725,1709309444040,-500.0,0.00021917,2]
[315973727,1709309444049,-1627.88,0.00021917,2]
[315973729,1709309444058,-500.0,0.00021917,2]
[315973731,1709309444067,-644.84,0.00021917,2]
[315973733,1709309444076,-500.0,0.00021917,2]
[315973735,1709309444085,-510.19,0.00021917,2]
[315973737,1709309444094,-151.0,0.00021917,2]
[315973739,1709309444105,-154.02,0.00021918,2]
[315973741,1709309444114,-157.63,0.00021918,2]
[315973743,1709309444123,-1153.34117614,0.00021957,2]
[315973745,1709309444132,-200.0,0.00021987,2]
[315973747,1709309444141,-1177.79,0.00021994,2]
[315973749,1709309444150,-100562.53722761,0.00022,2]
[315973792,1709309444545,-176.0,0.00020451,2]
[315973794,1709309444556,-162.0,0.00020451,2]
[315973796,1709309444565,-49.29801474,0.00022,2]
[315973798,1709309444577,-2893.59117955,0.00022,2]
[315973805,1709309444622,-376.0,0.00021136,2]
[315973807,1709309444631,-27.47012699,0.00022,2]
[315973809,1709309444642,-932.82500523,0.00022,2]
[315973811,1709309444653,-5218.2324476,0.00022,2]
[315973823,1709309444754,-162.0,0.00021136,2]
[315973825,1709309444763,-176.0,0.00021136,2]
[315973827,1709309444772,-376.0,0.00021821,2]
[315973829,1709309444782,-1691.04599828,0.00022,2]
[315973831,1709309444792,-400.0,0.00022,3]
[315973833,1709309444801,-103048.84346873,0.00022,2]
[315973854,1709309445052,-176.0,0.00021821,2]
[315973856,1709309445062,-16521.9574,0.00022,2]
[315973858,1709309445074,-2559.480595,0.00022,2]
[315973865,1709309445126,-464.32400007,0.00022,2]
[315973872,1709309445184,-3241.0965704,0.00022,2]
[315973875,1709309445200,-945.41897268,0.00022,2]
[315974052,1709309446870,-422.7,0.00021107,2]
[315974053,1709309446881,-2094.2,0.00021917,2]
[315974055,1709309446891,-8306.38784337,0.00022,2]
[315974076,1709309447184,-494.85273259,0.00022,2]
[315974248,1709310632020,-295.06,0.00018235,5]
[315974250,1709310632033,-990.46369914,0.00018235,5]
[315974251,1709310632043,-5492.2922799,0.00018236,2]
[315974252,1709310632053,-165.70840078,0.00018236,2]
[315974253,1709310632064,-5337.57667588,0.00018237,2]
[315974254,1709310632073,-2994.7473,0.00018245,2]
[315974255,1709310632083,-1001.12,0.00018346,2]
[315974256,1709310632093,-159.35183805,0.00019773,2]
[315974257,1709310632102,-1870.07401698,0.00019797,2]
[315974258,1709310632112,-23532.381,0.000199,2]
[315974259,1709310632122,-266.99,0.000199,2]
[315974260,1709310632131,-691.32,0.000199,2]
[315974261,1709310632141,-2600.0,0.0002,2]
[315974262,1709310632150,-177.57,0.00020154,2]
[315974263,1709310632160,-159.35183805,0.00020231,2]
[315974264,1709310632170,-400.0,0.00020239,2]
[315974265,1709310632181,-2379.26,0.00020279,2]
[315974266,1709310632191,-273.05,0.00020296,2]
[315974267,1709310632201,-250.0,0.00020297,2]
[315974268,1709310632211,-211.35,0.00020297,2]
[315974269,1709310632221,-20031.75565759,0.0002055,2]
[315974270,1709310632230,-1001.12,0.0002061,2]
[315974271,1709310632243,-159.35183805,0.00020688,2]
[315974272,1709310632253,-201.96,0.00021077,2]
[315974273,1709310632263,-690.18,0.00021096,2]
[315974274,1709310632272,-159.35183805,0.00021146,2]
[315974275,1709310632282,-170.37,0.0002117,2]
[315974276,1709310632291,-4948.01,0.00021228,2]
[315974277,1709310632301,-153.18190267,0.000213,2]
[315974278,1709310632311,-545.1101938,0.00021444,6]
[315974279,1709310632320,-545.1101938,0.00021452,6]
[315974280,1709310632330,-545.1101938,0.00021465,6]
[315974281,1709310632339,-545.1101938,0.00021475,6]
[315974282,1709310632350,-9568.2772,0.000215,2]
[315974283,1709310632359,-167.16,0.00021565,2]
[315974284,1709310632368,-605.74047609,0.0002159,2]
[315974285,1709310632377,-12886.9201,0.000216,2]
[315974286,1709310632387,-159.35183805,0.00021604,2]
[315974287,1709310632396,-893.8,0.0002169,3]
[315974288,1709310632405,-2787.74022442,0.00021697,2]
[315974289,1709310632414,-80940.1484,0.000217,2]
[315974290,1709310632423,-605.74047607,0.00021704,2]
[315974291,1709310632432,-1000.0,0.000218,2]
[315974292,1709310632442,-1987.0193,0.00021817,2]
[315974293,1709310632451,-1000.0,0.00021817,2]
[315974294,1709310632461,-2500.0,0.00021817,2]
[315974295,1709310632470,-1276.38030254,0.00021817,2]
[315974296,1709310632479,-605.74047607,0.00021817,2]
[315974297,1709310632490,-1000.0,0.00021916,2]
[315974298,1709310632499,-500.0,0.00021917,2]
[315974299,1709310632509,-477.56697155,0.00021917,2]
[315974300,1709310632518,-500.0,0.00021917,2]
[315974301,1709310632528,-500.0,0.00021917,2]
[315974302,1709310632537,-175.6,0.00021917,2]
[315974303,1709310632546,-408.83,0.00021917,2]
[315974304,1709310632555,-500.0,0.00021917,2]
[315974305,1709310632565,-392.62,0.00021917,2]
[315974306,1709310632574,-500.0,0.00021917,2]
[315974307,1709310632584,-500.0,0.00021917,2]
[315974308,1709310632593,-500.0,0.00021917,2]
[315974309,1709310632603,-179.75,0.00021917,2]
[315974310,1709310632612,-350.57500431,0.00021917,2]
[315974311,1709310632622,-500.0,0.00021917,2]
[315974312,1709310632631,-500.0,0.00021917,2]
[315974313,1709310632641,-500.0,0.00021917,2]
[315974314,1709310632650,-283.32754759,0.00021917,2]
[315974315,1709310632660,-500.0,0.00021917,2]
[315974316,1709310632669,-500.0,0.00021917,2]
[315974317,1709310632679,-500.0,0.00021917,2]
[315974318,1709310632688,-500.0,0.00021917,2]
[315974319,1709310632698,-500.0,0.00021917,2]
[315974320,1709310632708,-500.0,0.00021917,2]
[315974321,1709310632717,-500.0,0.00021917,2]
[315974322,1709310632727,-500.0,0.00021917,2]
[315974323,1709310632739,-500.0,0.00021917,2]
[315974324,1709310632748,-500.0,0.00021917,2]
[315974325,1709310632758,-500.0,0.00021917,2]
[315974326,1709310632768,-500.0,0.00021917,2]
[315974327,1709310632777,-500.0,0.00021917,2]
[315974328,1709310632787,-500.0,0.00021917,2]
[315974329,1709310632796,-500.0,0.00021917,2]
[315974330,1709310632807,-500.0,0.00021917,2]
[315974331,1709310632816,-355.23,0.00021917,2]
[315974332,1709310632825,-500.0,0.00021917,2]
[315974333,1709310632836,-500.0,0.00021917,2]
[315974334,1709310632845,-500.0,0.00021917,2]
[315974335,1709310632855,-500.0,0.00021917,2]
[315974336,1709310632864,-500.0,0.00021917,2]
[315974337,1709310632873,-500.0,0.00021917,2]
[315974338,1709310632883,-559.79137057,0.00021917,2]
[315974339,1709310632892,-500.0,0.00021917,2]
[315974340,1709310632901,-500.0,0.00021917,2]
[315974341,1709310632910,-500.0,0.00021917,2]
[315974342,1709310632919,-500.0,0.00021917,2]
[315974343,1709310632928,-500.0,0.00021917,2]
[315974344,1709310632937,-500.0,0.00021917,2]
[315974345,1709310632946,-500.0,0.00021917,2]
[315974346,1709310632955,-500.0,0.00021917,2]
[315974347,1709310632964,-500.0,0.00021917,2]
[315974348,1709310632975,-500.0,0.00021917,2]
[315974349,1709310632984,-500.0,0.00021917,2]
[315974350,1709310632995,-500.0,0.00021917,2]
[315974351,1709310633004,-500.0,0.00021917,2]
[315974352,1709310633014,-500.0,0.00021917,2]
[315974353,1709310633023,-514.9,0.00021917,2]
[315974354,1709310633032,-150.0,0.00021917,2]
[315974355,1709310633041,-500.0,0.00021917,2]
[315974356,1709310633050,-500.0,0.00021917,2]
[315974357,1709310633059,-656.09,0.00021917,2]
[315974358,1709310633068,-500.0,0.00021917,2]
[315974359,1709310633077,-500.0,0.00021917,2]
[315974360,1709310633086,-500.0,0.00021917,2]
[315974361,1709310633095,-394.05675739,0.00021917,2]
[315974362,1709310633104,-728.97,0.00021917,2]
[315974363,1709310633114,-500.0,0.00021917,2]
[315974364,1709310633123,-500.0,0.00021917,2]
[315974365,1709310633133,-500.0,0.00021917,2]
[315974366,1709310633143,-500.0,0.00021917,2]
[315974367,1709310633152,-500.0,0.00021917,2]
[315974368,1709310633162,-500.0,0.00021917,2]
[315974369,1709310633172,-500.0,0.00021917,2]
[315974370,1709310633181,-500.0,0.00021917,2]
[315974371,1709310633191,-500.0,0.00021917,2]
[315974372,1709310633200,-572.38,0.00021917,2]
[315974373,1709310633209,-500.0,0.00021917,2]
[315974374,1709310633219,-500.0,0.00021917,2]
[315974375,1709310633228,-500.0,0.00021917,2]
[315974376,1709310633240,-310.66585759,0.00021917,2]
[315974377,1709310633250,-500.0,0.00021917,2]
[315974378,1709310633259,-500.0,0.00021917,2]
[315974379,1709310633270,-500.0,0.00021917,2]
[315974380,1709310633279,-627.18,0.00021917,2]
[315974381,1709310633289,-500.0,0.00021917,2]
[315974382,1709310633298,-500.0,0.00021917,2]